fUST/lending_fUST_20251201
["ID","MTS","AMOUNT","RATE_DAILY","PERIOD"]
[395229200,1764556242183,-500.96982402,0.00012652,2]
[395229201,1764556242193,-500.0,0.00012652,2]
[395229204,1764556242203,-503.00300111,0.00012652,2]
[395229206,1764556242213,-501.36048631,0.00012652,2]
[395229208,1764556242222,-501.81378033,0.00012652,2]
[395229209,1764556242231,-501.91854677,0.00012652,2]
[395229211,1764556242240,-500.70797474,0.00012652,2]
[395229213,1764556242249,-500.66902273,0.00012652,2]
[395229215,1764556242258,-500.0,0.00012652,2]
[395229217,1764556242267,-500.0,0.00012652,2]
[395229219,1764556242277,-503.07673659,0.00012652,2]
[395229221,1764556242286,-502.05295044,0.00012652,2]
[395229224,1764556242295,-500.0,0.00012652,2]
[395229226,1764556242305,-500.72157803,0.00012652,2]
[395229228,1764556242314,-500.97,0.00012652,2]
[395229230,1764556242323,-500.0,0.00012652,2]
[395229232,1764556242332,-500.25409349,0.00012652,2]
[395229233,1764556242341,-501.27955327,0.00012652,2]
[395229235,1764556242350,-501.77674678,0.00012652,2]
[395229237,1764556242359,-500.0,0.00012652,2]
[395229239,1764556242369,-503.78500398,0.00012652,2]
[395229241,1764556242379,-258.90900757,0.00012652,2]
[395229243,1764556242388,-500.0,0.00012652,2]
[395229245,1764556242398,-500.0,0.00012652,2]
[395229246,1764556242407,-500.0,0.00012652,2]
[395229248,1764556242417,-503.96618036,0.00012652,2]
[395229250,1764556242427,-504.49040111,0.00012652,2]
[395229252,1764556242436,-500.49194657,0.00012652,2]
[395229254,1764556242446,-500.0,0.00012652,2]
[395229256,1764556242455,-500.0,0.00012652,2]
[395229260,1764556242465,-500.0,0.00012652,2]
[395229262,1764556242474,-500.0,0.00012652,2]
[395229264,1764556242484,-574.22,0.00012652,2]
[395229266,1764556242495,-501.73775776,0.00012652,2]
[395229268,1764556242505,-500.0,0.00012652,2]
[395229270,1764556242515,-502.05177264,0.00012652,2]
[395229272,1764556242525,-500.0,0.00012652,2]
[395229274,1764556242535,-500.0,0.00012652,2]
[395229276,1764556242547,-501.24418539,0.00012652,2]
[395229278,1764556242557,-500.0,0.00012652,2]
[395229280,1764556242567,-502.36,0.00012652,2]
[395229282,1764556242577,-500.0,0.00012652,2]
[395229284,1764556242586,-506.12447087,0.00012652,2]
[395229286,1764556242596,-175.951988,0.00012652,2]
[395229288,1764556242606,-501.20461982,0.00012652,2]
[395229290,1764556242615,-540.89,0.00012652,2]
[395229292,1764556242626,-502.82516009,0.00012652,2]
[395229294,1764556242635,-502.15114915,0.00012652,2]
[395229297,1764556242645,-1645.56,0.00012652,2]
[395229299,1764556242654,-671.5,0.00012652,2]
[395229301,1764556242663,-151.0,0.00012652,2]
[395229303,1764556242672,-840.49,0.00012652,2]
[395229305,1764556242682,-500.0,0.00012652,2]
[395229307,1764556242691,-500.0,0.00012652,2]
[395229309,1764556242700,-287.139537,0.00012652,2]
[395229311,1764556242711,-564.18175296,0.00012652,2]
[395229313,1764556242720,-500.0,0.00012652,2]
[395229316,1764556242730,-310.50833142,0.00012652,2]
[395229319,1764556242739,-500.0,0.00012652,2]
[395229322,1764556242750,-501.78256487,0.00012652,2]
[395229323,1764556242759,-151.801155,0.00012652,2]
[395229325,1764556242769,-500.0,0.00012652,2]
[395229327,1764556242778,-977.07,0.00012652,2]
[395229330,1764556242787,-501.89322488,0.00012652,2]
[395229333,1764556242798,-500.0,0.00012652,2]
[395229336,1764556242807,-500.0,0.00012652,2]
[395229339,1764556242816,-500.0,0.00012652,2]
[395229342,1764556242826,-501.15055593,0.00012652,2]
[395229344,1764556242835,-500.93664523,0.00012652,2]
[395229346,1764556242845,-500.0,0.00012652,2]
[395229348,1764556242854,-500.0,0.00012652,2]
[395229351,1764556242864,-502.46793083,0.00012652,2]
[395229354,1764556242873,-502.04579269,0.00012652,2]
[395229357,1764556242883,-501.39515388,0.00012652,2]
[395229359,1764556242893,-500.0,0.00012652,2]
[395229362,1764556242903,-501.2457932,0.00012652,2]
[395229365,1764556242912,-503.15772857,0.00012652,2]
[395229368,1764556242921,-592.55,0.00012652,2]
[395229370,1764556242930,-501.60171064,0.00012652,2]
[395229372,1764556242939,-500.0,0.00012652,2]
[395229374,1764556242948,-15857.46,0.00012652,2]
[395229376,1764556242957,-501.8745555,0.00012652,2]
[395229377,1764556242966,-500.0,0.00012652,2]
[395229379,1764556242975,-515.89982791,0.00012652,2]
[395229381,1764556242984,-501.08940189,0.00012652,2]
[395229383,1764556242993,-500.87804926,0.00012652,2]
[395229385,1764556243002,-500.0,0.00012652,2]
[395229387,1764556243012,-500.93149453,0.00012652,2]
[395229389,1764556243021,-500.0,0.00012652,2]
[395229391,1764556243031,-500.56387814,0.00012652,2]
[395229393,1764556243039,-540.28,0.00012652,2]
[395229395,1764556243049,-500.0,0.00012652,2]
[395229397,1764556243058,-729.51,0.00012652,2]
[395229399,1764556243066,-500.0,0.00012652,2]
[395229401,1764556243075,-501.23029891,0.00012652,2]
[395229403,1764556243084,-441.8866697,0.00012652,2]
[395229405,1764556243093,-500.61838094,0.00012652,2]
[395229407,1764556243103,-500.0,0.00012652,2]
[395229409,1764556243112,-500.0,0.00012652,2]
[395229410,1764556243122,-501.42433962,0.00012652,2]
[395229412,1764556243134,-501.25522909,0.00012652,2]
[395229414,1764556243143,-503.19646552,0.00012652,2]
[395229416,1764556243152,-500.0,0.00012652,2]
[395229418,1764556243162,-500.0,0.00012652,2]
[395229420,1764556243173,-500.0,0.00012652,2]
[395229422,1764556243182,-500.0,0.00012652,2]
[395229424,1764556243191,-1450.78,0.00012652,2]
[395229426,1764556243201,-500.81632082,0.00012652,2]
[395229428,1764556243210,-500.0,0.00012652,2]
[395229430,1764556243219,-500.0,0.00012652,2]
[395229432,1764556243228,-500.0,0.00012652,2]
[395229434,1764556243238,-500.79600885,0.00012652,2]
[395229436,1764556243247,-500.77202809,0.00012652,2]
[395229438,1764556243256,-502.28448785,0.00012652,2]
[395229440,1764556243266,-599.0,0.00012652,2]
[395229442,1764556243275,-500.0,0.00012652,2]
[395229444,1764556243284,-500.0,0.00012652,2]
[395229446,1764556243293,-151.0,0.00012652,2]
[395229447,1764556243302,-263.811843,0.00012652,2]
[395229449,1764556243311,-500.0,0.00012652,2]
[395229451,1764556243320,-151.0,0.00012652,2]
[395229453,1764556243329,-156.921661,0.00012652,2]
[395229455,1764556243338,-500.26663861,0.00012652,2]
[395229457,1764556243347,-500.43114074,0.00012652,2]
[395229459,1764556243356,-502.28522919,0.00012652,2]
[395229461,1764556243365,-500.49671164,0.00012652,2]
[395229463,1764556243374,-500.0,0.00012652,2]
[395229465,1764556243383,-500.0,0.00012652,2]
[395229467,1764556243392,-500.0,0.00012652,2]
[395229468,1764556243402,-888.29,0.00012652,2]
[395229470,1764556243411,-501.82333483,0.00012652,2]
[395229472,1764556243420,-1201.87,0.00012652,2]
[395229474,1764556243431,-504.81683499,0.00012652,2]
[395229476,1764556243441,-500.0,0.00012652,2]
[395229478,1764556243450,-500.0,0.00012652,2]
[395229480,1764556243460,-507.32049237,0.00012652,2]
[395229482,1764556243469,-500.0,0.00012652,2]
[395229484,1764556243479,-1046.54,0.00012652,2]
[395229486,1764556243488,-151.553501,0.00012652,2]
[395229488,1764556243498,-826.69,0.00012652,2]
[395229490,1764556243508,-500.0,0.00012652,2]
[395229492,1764556243517,-500.0,0.00012652,2]
[395229494,1764556243527,-588.87049242,0.00012652,2]
[395229496,1764556243536,-500.0,0.00012652,2]
[395229498,1764556243546,-500.0,0.00012652,2]
[395229500,1764556243555,-500.0,0.00012652,2]
[395229502,1764556243564,-500.0,0.00012652,2]
[395229503,1764556243573,-637.54,0.00012652,2]
[395229505,1764556243582,-500.0,0.00012652,2]
[395229507,1764556243591,-187.23021568,0.00012652,2]
[395229509,1764556243600,-500.0,0.00012652,2]
[395229511,1764556243609,-671.41,0.00012652,2]
[395229513,1764556243618,-500.0,0.00012652,2]
[395229515,1764556243627,-500.0,0.00012652,2]
[395229517,1764556243636,-500.0,0.00012652,2]
[395229519,1764556243645,-500.80224909,0.00012652,2]
[395229521,1764556243654,-500.0,0.00012652,2]
[395229523,1764556243663,-500.0,0.00012652,2]
[395229525,1764556243672,-500.0,0.00012652,2]
[395229527,1764556243681,-500.0,0.00012652,2]
[395229529,1764556243690,-151.0,0.00012653,2]
[395229530,1764556243699,-151.0,0.00012653,2]
[395229532,1764556243709,-185.687388,0.00012653,2]
[395229534,1764556243718,-185.549486,0.00012653,2]
[395229536,1764556243728,-500.0,0.00012749,2]
[395229538,1764556243737,-500.0,0.00012749,2]
[395229555,1764556243897,-606.15,0.00012749,2]
[395229557,1764556243908,-537.7,0.00012749,2]
[395229559,1764556243918,-779.82,0.00012749,2]
[395229561,1764556243927,-500.0,0.00012749,2]
[395229563,1764556243937,-596.45,0.00012749,2]
[395229565,1764556243946,-1757.32,0.00012749,2]
[395229567,1764556243956,-926.73,0.00012749,2]
[395229569,1764556243965,-500.0,0.00012749,2]
[395229571,1764556243974,-500.0,0.00012749,2]
[395229573,1764556243983,-500.0,0.00012749,2]
[395229575,1764556243994,-500.0,0.00012749,2]
[395229577,1764556244003,-500.0,0.00012749,2]
[395229579,1764556244016,-848.64,0.00012749,2]
[395229581,1764556244029,-500.0,0.00012749,2]
[395229583,1764556244041,-684.29,0.00012749,2]
[395229585,1764556244054,-2051.19,0.00012749,2]
[395229587,1764556244068,-959.84,0.00012749,2]
[395229589,1764556244079,-427.63646203,0.00012749,2]
[395229591,1764556244090,-500.0,0.00012749,2]
[395229593,1764556244102,-502.70374507,0.00012749,2]
[395229595,1764556244112,-500.0,0.00012749,2]
[395229596,1764556244127,-1696.5,0.00012749,2]
[395229598,1764556244138,-500.0,0.00012749,2]
[395229600,1764556244148,-501.88005291,0.00012749,2]
[395229602,1764556244160,-884.39,0.00012749,2]
[395229604,1764556244170,-515.21596135,0.00012749,2]
[395229606,1764556244180,-500.0,0.00012749,2]
[395229608,1764556244190,-500.0,0.00012749,2]
[395229610,1764556244200,-560.58,0.00012749,2]
[395229612,1764556244213,-1577.42,0.00012749,2]
[395229614,1764556244223,-500.0,0.00012749,2]
[395229616,1764556244233,-500.0,0.00012749,2]
[395229618,1764556244243,-506.97058136,0.00012749,2]
[395229620,1764556244252,-503.88010346,0.00012749,2]
[395229622,1764556244261,-500.0,0.00012749,2]
[395229624,1764556244271,-2868.25,0.00012749,2]
[395229626,1764556244281,-500.0,0.00012749,2]
[395229628,1764556244290,-303.25398935,0.0001275,2]
[395229629,1764556244301,-500.0,0.0001275,2]
[395229631,1764556244310,-500.0,0.0001275,2]
[395229633,1764556244320,-500.0,0.0001275,2]
[395229635,1764556244329,-562.68,0.0001275,2]
[395229637,1764556244339,-500.0,0.0001275,2]
[395229639,1764556244349,-500.0,0.0001275,2]
[395229641,1764556244358,-500.0,0.0001275,2]
[395229643,1764556244368,-663.34,0.0001275,2]
[395229645,1764556244378,-502.55283623,0.0001275,2]
[395229647,1764556244387,-500.0,0.0001275,2]
[395229649,1764556244396,-563.74,0.0001275,2]
[395229650,1764556244405,-151.0,0.0001275,2]
[395229652,1764556244415,-151.0,0.0001275,2]
[395229654,1764556244425,-500.0,0.0001275,2]
[395229656,1764556244435,-931.08,0.0001275,2]
[395229658,1764556244445,-501.39110548,0.0001275,2]
[395229660,1764556244456,-533.19016601,0.0001275,2]
[395229662,1764556244465,-887.14,0.0001275,2]
[395229664,1764556244476,-536.24,0.0001275,2]
[395229666,1764556244486,-500.0,0.0001275,2]
[395229668,1764556244500,-2969.19,0.0001275,2]
[395229670,1764556244511,-500.0,0.0001275,2]
[395229672,1764556244520,-1001.84610343,0.00012751,2]
[395229674,1764556244530,-151.0,0.00012751,2]
[395229676,1764556244540,-151.0,0.00012751,2]
[395229677,1764556244550,-224.79172649,0.00012751,2]
[395229679,1764556244560,-151.0,0.00012753,2]
[395229681,1764556244569,-500.0,0.00012755,2]
[395229683,1764556244580,-500.0,0.00012755,2]
[395229685,1764556244590,-501.96151005,0.00012755,2]
[395229687,1764556244598,-500.0,0.00012755,2]
[395229689,1764556244608,-500.37020686,0.00012755,2]
[395229691,1764556244617,-500.98672127,0.00012755,2]
[395229693,1764556244627,-500.62172607,0.00012755,2]
[395229695,1764556244637,-500.0,0.00012755,2]
[395229697,1764556244646,-500.67010603,0.00012755,2]
[395229699,1764556244656,-585.46,0.00012755,2]
[395229701,1764556244665,-519.59251039,0.00012755,2]
[395229703,1764556244675,-501.08789095,0.00012755,2]
[395229705,1764556244684,-500.0,0.00012755,2]
[395229707,1764556244693,-501.95623723,0.00012755,2]
[395229709,1764556244703,-500.0,0.00012755,2]
[395229710,1764556244712,-500.0,0.00012755,2]
[395229712,1764556244722,-500.0,0.00012755,2]
[395229714,1764556244733,-500.0,0.00012755,2]
[395229716,1764556244743,-561.57,0.00012755,2]
[395229718,1764556244753,-292.0004218,0.00012755,2]
[395229720,1764556244764,-748.61,0.00012755,2]
[395229722,1764556244773,-500.0,0.00012755,2]
[395229724,1764556244783,-612.18,0.00012755,2]
[395229726,1764556244794,-505.22133847,0.00012755,2]
[395229728,1764556244804,-502.85918937,0.00012755,2]
[395229730,1764556244813,-500.0,0.00012755,2]
[395229732,1764556244823,-502.0325379,0.00012755,2]
[395229734,1764556244833,-151.0,0.00012755,2]
[395229736,1764556244842,-151.0,0.00012755,2]
[395229738,1764556244851,-151.0,0.00012755,2]
[395229740,1764556244861,-151.0,0.00012755,2]
[395229742,1764556244870,-151.0,0.00012755,2]
[395229744,1764556244880,-151.0,0.00012755,2]
[395229746,1764556244889,-5258.39318493,0.00012755,2]
[395229748,1764556244898,-501.76860768,0.00012756,2]
[395229749,1764556244908,-218.16505864,0.000128,2]
[395229751,1764556244918,-151.0,0.000128,2]
[395229754,1764556244928,-167.0,0.000128,2]
[395229755,1764556244937,-237.85656026,0.00012857,2]
[395229757,1764556244947,-50000.0,0.00012864,2]
[395229759,1764556244956,-151.0,0.000129,2]
[395229761,1764556244966,-151.0,0.000129,2]
[395229763,1764556244976,-151.0,0.000129,2]
[395229765,1764556244985,-211.0366673,0.000129,2]
[395229767,1764556244994,-743.91,0.00012908,2]
[395229769,1764556245004,-4019.81,0.00012908,2]
[395229771,1764556245014,-500.0,0.00012908,2]
[395229773,1764556245023,-966.64,0.00012908,2]
[395229775,1764556245033,-1542.5777649,0.00012908,2]
[395229854,1764556246184,-472.7742183,9.104e-05,2]
[395229855,1764556246194,-500.0,0.0001265,2]
[395229856,1764556246205,-500.0,0.00012651,2]
[395229857,1764556246214,-121.3722351,0.00012908,2]
[395229858,1764556246223,-500.0,0.00012908,2]
[395229859,1764556246233,-918.77,0.00012908,2]
[395229861,1764556246242,-717.12,0.00012908,2]
[395229862,1764556246251,-1976.68624175,0.00012908,2]
[395229864,1764556246262,-1433.43375825,0.00012908,2]
[395229866,1764556246271,-54.20277532,0.00012923,2]
[395231002,1764556271229,634.045847,0.00010959,7]
[395231005,1764556714188,-150.0,0.00014887,9]
[395231007,1764556928709,380.4275082,0.00010959,7]
[395231008,1764557030992,-171.91918284,0.00017925,21]
[395231009,1764557159958,-171.91918284,0.00017057,18]
[395231011,1764557225257,-171.91918284,0.00016189,14]
[395231012,1764557246928,228.25650492,0.00010959,7]
[395231013,1764557285672,-171.91918284,0.00017491,19]
[395231014,1764557338747,-171.91918284,0.00018359,23]
[395231090,1764557436010,-698.0365149,8.746e-05,2]
[395231092,1764557436019,-223.0,8.746e-05,2]
[395231094,1764557436028,-1.49409408,8.924e-05,2]
[395231095,1764557436039,-185.59092677,8.924e-05,2]
[395231096,1764557436048,-753.25842522,9.104e-05,2]
[395231097,1764557436057,-1349.18231401,0.00010262,2]
[395231098,1764557436068,-379.5190505,0.00010262,2]
[395231099,1764557436108,-258.59756725,0.00010262,2]
[395231100,1764557436119,-3202.60835806,0.00010262,2]
[395231101,1764557436129,-5189.90728982,0.0001059,2]
[395231102,1764557436137,-300.0,0.00010739,2]
[395231103,1764557436146,-300.0,0.00010739,2]
[395231104,1764557436156,-5189.90728982,0.00010918,2]
[395231105,1764557436165,-220.7603246,0.00010924,2]
[395231106,1764557436174,-500.0,0.00011112,2]
[395231107,1764557436183,-157.19022117,0.00011112,2]
[395231108,1764557436192,-500.0,0.00011112,2]
[395231109,1764557436201,-500.0,0.00011112,2]
[395231110,1764557436210,-500.0,0.00011112,2]
[395231111,1764557436219,-500.0,0.00011112,2]
[395231112,1764557436228,-2902.81676581,0.00011113,2]
[395231147,1764557438389,-500.0,0.00011112,2]
[395231149,1764557438399,-500.0,0.00011112,2]
[395231151,1764557438409,-26.99931256,0.00011112,2]
[395231153,1764557438420,-473.00068744,0.00011112,2]
[395231155,1764557438429,-500.0,0.00011112,2]
[395231157,1764557438439,-500.0,0.00011112,2]
[395231159,1764557438448,-500.0,0.00011112,2]
[395231161,1764557438457,-500.0,0.00011112,2]
[395231163,1764557438466,-500.0,0.00011112,2]
[395231165,1764557438475,-231.40365954,0.00011112,2]
[395231167,1764557438484,-500.0,0.00011112,2]
[395231169,1764557438495,-500.0,0.00011112,2]
[395231171,1764557438507,-158.01311704,0.00011112,2]
[395231174,1764557438519,-500.0,0.00011112,2]
[395231176,1764557438535,-500.0,0.00011112,2]
[395231178,1764557438546,-500.0,0.00011112,2]
[395231180,1764557438557,-250.0,0.00011112,2]
[395231182,1764557438568,-500.0,0.00011112,2]
[395231185,1764557438579,-300.0,0.00011112,2]
[395231187,1764557438591,-500.0,0.00011112,2]
[395231189,1764557438602,-650.49995107,0.00011113,2]
[395231191,1764557438616,-2255.20380549,0.00011113,2]
[395231194,1764557438634,-1888.3931287,0.00011113,2]
[395231197,1764557438649,-529.46489486,0.00011113,2]
[395231393,1764557440501,-41773.62145407,0.00011113,2]
[395231395,1764557440512,-500.0,0.00011114,2]
[395231397,1764557440524,-850.17,0.00011114,2]
[395231400,1764557440539,-2262.09,0.00011114,2]
[395231402,1764557440555,-1000.0,0.00011118,2]
[395231405,1764557440568,-555.0,0.00011118,2]
[395231407,1764557440581,-681.92,0.00011124,2]
[395231409,1764557440591,-1288.44,0.00011124,2]
[395231411,1764557440602,-951.4,0.00011124,2]
[395231414,1764557440613,-502.57211285,0.00011124,2]
[395231416,1764557440626,-666.07,0.00011124,2]
[395231419,1764557440641,-3684.82,0.00011124,2]
[395231423,1764557440656,-500.0,0.00011124,2]
[395231427,1764557440667,-500.0,0.00011124,2]
[395231430,1764557440678,-8355.99,0.00011124,2]
[395231432,1764557440688,-886.09,0.00011124,2]
[395231434,1764557440698,-1525.29,0.00011124,2]
[395231436,1764557440708,-7037.25,0.00011124,2]
[395231439,1764557440729,-500.0,0.00011124,2]
[395231441,1764557440740,-500.0,0.00011124,2]
[395231444,1764557440752,-500.0,0.00011124,2]
[395231446,1764557440764,-842.2,0.00011124,2]
[395231448,1764557440776,-3247.42,0.00011124,2]
[395231451,1764557440788,-500.0,0.00011124,2]
[395231453,1764557440802,-1192.42,0.00011124,2]
[395231455,1764557440813,-1890.5,0.00011124,2]
[395231458,1764557440825,-657.36,0.00011124,2]
[395231460,1764557440837,-500.0,0.00011124,2]
[395231462,1764557440850,-3125.94,0.00011124,2]
[395231464,1764557440862,-632.37,0.00011126,2]
[395231467,1764557440873,-500.0,0.00011126,2]
[395231469,1764557440886,-500.0,0.00011126,2]
[395231471,1764557440899,-500.0,0.00011126,2]
[395231474,1764557440912,-500.0,0.00011126,2]
[395231476,1764557440923,-693.57,0.00011126,2]
[395231478,1764557440934,-548.47,0.00011126,2]
[395231481,1764557440945,-500.0,0.00011126,2]
[395231483,1764557440957,-500.0,0.00011126,2]
[395231485,1764557440967,-500.0,0.00011126,2]
[395231487,1764557440978,-504.05881073,0.00011126,2]
[395231489,1764557440989,-501.17736407,0.00011126,2]
[395231492,1764557441000,-273.94266857,0.00011126,2]
[395231494,1764557441010,-501.13157869,0.00011126,2]
[395231496,1764557441021,-501.86093283,0.00011126,2]
[395231498,1764557441032,-500.0,0.00011126,2]
[395231501,1764557441043,-500.0,0.00011126,2]
[395231503,1764557441054,-503.35220295,0.00011126,2]
[395231505,1764557441064,-504.46612242,0.00011126,2]
[395231507,1764557441076,-500.0,0.00011126,2]
[395231509,1764557441086,-1053.14,0.00011126,2]
[395231512,1764557441097,-500.0,0.00011126,2]
[395231514,1764557441108,-500.0,0.00011126,2]
[395231516,1764557441119,-500.0,0.00011126,2]
[395231518,1764557441129,-500.0,0.00011126,2]
[395231520,1764557441139,-500.0,0.00011126,2]
[395231522,1764557441151,-500.0,0.00011126,2]
[395231524,1764557441162,-500.0,0.00011126,2]
[395231527,1764557441172,-4056.13,0.00011126,2]
[395231529,1764557441183,-1136.18,0.00011126,2]
[395231531,1764557441194,-500.0,0.00011126,2]
[395231533,1764557441204,-500.0,0.00011126,2]
[395231535,1764557441215,-1578.74,0.00011126,2]
[395231537,1764557441226,-500.0,0.00011126,2]
[395231539,1764557441236,-951.63,0.00011126,2]
[395231542,1764557441247,-500.0,0.00011126,2]
[395231544,1764557441258,-658.92,0.00011126,2]
[395231546,1764557441270,-791.89,0.00011126,2]
[395231548,1764557441280,-974.14,0.00011126,2]
[395231551,1764557441291,-500.0,0.00011126,2]
[395231553,1764557441302,-500.0,0.00011126,2]
[395231555,1764557441313,-3599.61,0.00011126,2]
[395231557,1764557441324,-500.0,0.00011126,2]
[395231559,1764557441335,-1900.09,0.00011126,2]
[395231562,1764557441346,-500.0,0.00011126,2]
[395231564,1764557441356,-3310.39,0.00011126,2]
[395231566,1764557441366,-500.0,0.00011126,2]
[395231568,1764557441378,-2454.34,0.00011126,2]
[395231570,1764557441388,-500.0,0.00011126,2]
[395231572,1764557441399,-500.0,0.00011126,2]
[395231575,1764557441410,-500.0,0.00011126,2]
[395231577,1764557441420,-500.0,0.00011126,2]
[395231579,1764557441431,-736.74,0.00011126,2]
[395231581,1764557441442,-1066.53,0.00011126,2]
[395231583,1764557441452,-798.88,0.00011126,2]
[395231585,1764557441463,-500.0,0.00011126,2]
[395231588,1764557441473,-500.0,0.00011126,2]
[395231590,1764557441484,-500.0,0.00011126,2]
[395231592,1764557441495,-2765.85,0.00011126,2]
[395231594,1764557441505,-500.0,0.00011126,2]
[395231596,1764557441516,-2585.22,0.00011126,2]
[395231598,1764557441531,-721.36,0.00011126,2]
[395231601,1764557441545,-3023.52,0.00011126,2]
[395231603,1764557441555,-500.0,0.00011126,2]
[395231605,1764557441566,-500.0,0.00011126,2]
[395231607,1764557441579,-4452.0,0.00011126,2]
[395231609,1764557441591,-500.0,0.00011126,2]
[395231612,1764557441603,-500.0,0.00011126,2]
[395231614,1764557441613,-1265.15,0.00011126,2]
[395231616,1764557441624,-500.0,0.00011126,2]
[395231618,1764557441635,-1467.7,0.00011126,2]
[395231620,1764557441646,-642.42,0.00011126,2]
[395231622,1764557441657,-500.0,0.00011126,2]
[395231624,1764557441669,-897.84,0.00011126,2]
[395231626,1764557441680,-300.0,0.00011127,2]
[395231629,1764557441691,-300.0,0.00011127,2]
[395231631,1764557441703,-300.0,0.00011127,2]
[395231633,1764557441714,-300.0,0.00011127,2]
[395231635,1764557441725,-300.0,0.00011127,2]
[395231637,1764557441736,-300.0,0.00011127,2]
[395231640,1764557441747,-300.0,0.00011127,2]
[395231642,1764557441758,-300.0,0.00011127,2]
[395231644,1764557441769,-300.0,0.00011127,2]
[395231645,1764557441779,-300.0,0.00011127,2]
[395231646,1764557441790,-300.0,0.00011127,2]
[395231647,1764557441801,-300.0,0.00011127,2]
[395231648,1764557441811,-300.0,0.00011127,2]
[395231649,1764557441821,-300.0,0.00011127,2]
[395231650,1764557441832,-300.0,0.00011127,2]
[395231651,1764557441843,-500.0,0.00011127,2]
[395231652,1764557441854,-5189.90728982,0.00011246,2]
[395231653,1764557441865,-500.0,0.00011388,2]
[395231654,1764557441875,-850.17,0.00011388,2]
[395231655,1764557441886,-2262.09,0.00011388,2]
[395231656,1764557441898,-681.92,0.00011398,2]
[395231657,1764557441908,-1288.44,0.00011398,2]
[395231658,1764557441919,-951.4,0.00011398,2]
[395231659,1764557441929,-666.07,0.00011398,2]
[395231660,1764557441939,-1580.629463,0.00011398,2]
[395231828,1764557443495,-500.0,0.00011112,2]
[395231830,1764557443506,-55.39391085,0.00011386,2]
[395232132,1764557446413,-506.90254592,0.00011124,2]
[395232134,1764557446423,-490.45935297,0.00011124,2]
[395232136,1764557446432,-389.59970702,0.00011126,2]
[395232138,1764557446444,-110.40029298,0.00011126,2]
[395232140,1764557446453,-444.60608915,0.00011386,2]
[395232142,1764557446462,-401.69361787,0.00011398,2]
[395232425,1764557449341,-547.8,0.00011114,2]
[395232428,1764557449362,-500.0,0.00011126,2]
[395232431,1764557449383,-1392.45,0.00011126,2]
[395232434,1764557449405,-4856.57,0.00011126,2]
[395232438,1764557449428,-1702.49691913,0.00011398,2]
[395232441,1764557449448,-500.0,0.00011398,2]
[395232444,1764557449468,-500.0,0.00011398,2]
[395232447,1764557449489,-8355.99,0.00011398,2]
[395232450,1764557449510,-886.09,0.00011398,2]
[395232454,1764557449534,-1525.29,0.00011398,2]
[395232457,1764557449556,-7037.25,0.00011398,2]
[395232460,1764557449578,-500.0,0.00011398,2]
[395232463,1764557449598,-500.0,0.00011398,2]
[395232467,1764557449619,-500.0,0.00011398,2]
[395232470,1764557449639,-842.2,0.00011398,2]
[395232473,1764557449662,-3247.42,0.00011398,2]
[395232476,1764557449683,-500.0,0.00011398,2]
[395232479,1764557449703,-1192.42,0.00011398,2]
[395232482,1764557449724,-1890.5,0.00011398,2]
[395232486,1764557449744,-657.36,0.00011398,2]